bitfinex-derivatives/quotes_BTCF0:USTF0_20250924
["timestamp","ask_amount","ask_price","bid_price","bid_amount"]
[1758730347672,2.32547333,113250.0,113240.0,0.001]
[1758730347875,0.0882802,113220.0,113210.0,0.1016943]
[1758730348175,1.96743782,113220.0,113210.0,0.1241843]
[1758730348586,1.61510314,113220.0,113210.0,0.1241843]
[1758730348886,1.2611602,113220.0,113210.0,0.1241843]
[1758730349085,1.61510314,113220.0,113210.0,0.1241843]
[1758730349284,1.61610314,113220.0,113210.0,0.1481843]
[1758730350077,1.52782294,113220.0,113210.0,0.1481843]
[1758730350688,1.17388,113220.0,113210.0,0.1481843]
[1758730350988,1.52782294,113220.0,113210.0,0.1481843]
[1758730351381,1.52690294,113220.0,113210.0,0.5421843]
[1758730351588,1.52790294,113220.0,113210.0,0.5481843]
[1758730351783,1.61618314,113220.0,113210.0,0.5481843]
[1758730351987,1.97012608,113220.0,113210.0,0.125698]
[1758730352676,1.15796608,113220.0,113210.0,0.148188]
[1758730352877,1.61622314,113220.0,113210.0,0.148188]
[1758730353085,0.80402314,113220.0,113210.0,0.148188]
[1758730353284,1.52794294,113220.0,113210.0,0.128188]
[1758730353589,1.61622314,113220.0,113210.0,0.537188]
[1758730354392,1.61626314,113220.0,113210.0,0.537188]
[1758730354591,1.2623202,113220.0,113210.0,0.537188]
[1758730354793,1.61626314,113220.0,113210.0,0.537188]
[1758730354991,1.61526314,113220.0,113210.0,0.534188]
[1758730356797,1.52698294,113220.0,113210.0,0.534188]
[1758730358086,0.3608,113220.0,113210.0,0.534188]
[1758730358297,1.17308,113220.0,113210.0,0.97645845]
[1758730358491,1.17308,113220.0,113210.0,0.62251551]
[1758730358792,1.61525644,113230.0,113220.0,0.1241802]
[1758730359794,1.61529644,113230.0,113220.0,0.1241802]
[1758730360289,1.61729644,113230.0,113220.0,0.1241802]
[1758730360490,1.2633535,113230.0,113220.0,0.1241802]
[1758730360991,1.2633535,113230.0,113220.0,0.1016902]
[1758730361403,1.2633535,113230.0,113220.0,0.1241802]
[1758730363094,1.61729644,113230.0,113220.0,0.0359]
[1758730363286,1.61729644,113230.0,113220.0,0.1241801]
[1758730364295,1.61729644,113230.0,113220.0,0.0359]
[1758730364497,1.61729644,113230.0,113220.0,0.1241801]
[1758730364891,1.61729644,113230.0,113220.0,0.0359]
[1758730365192,1.61729644,113230.0,113220.0,0.1241801]
[1758730365390,0.71674294,113230.0,113220.0,0.1241801]
[1758730365694,1.61725524,113230.0,113220.0,0.1241801]
[1758730366096,1.61725524,113230.0,113220.0,0.01341]
[1758730366683,1.97119818,113230.0,113220.0,0.01341]
[1758730366886,1.62425524,113230.0,113220.0,0.01441]
[1758730367586,2.3987408,113230.0,113220.0,0.001]
[1758730369490,1.71615594,113230.0,113220.0,0.001]
[1758730369695,2.42404182,113230.0,113220.0,0.001]
[1758730371295,0.0882957,113200.0,113190.0,0.08522481]
[1758730371594,1.97607864,113200.0,113190.0,0.0355]
[1758730371791,1.16383864,113200.0,113190.0,0.0355]
[1758730372098,1.97607864,113200.0,113190.0,0.1238035]
[1758730372896,1.97607864,113200.0,113190.0,0.0355]
[1758730373094,1.97607864,113200.0,113190.0,0.0545]
[1758730373296,1.97607864,113200.0,113190.0,0.1428035]
[1758730373896,1.97707864,113200.0,113190.0,0.1458035]
[1758730374796,1.97907864,113200.0,113190.0,0.1438035]
[1758730375003,1.6251357,113200.0,113190.0,0.1438035]
[1758730375195,1.97907864,113200.0,113190.0,0.1438035]
[1758730376106,1.98007864,113200.0,113190.0,0.1248035]
[1758730376497,1.89178294,113200.0,113190.0,0.1248035]
[1758730376705,1.6261357,113200.0,113190.0,0.5248035]
[1758730377005,1.98007864,113200.0,113190.0,0.5248035]
[1758730377193,1.58472356,113200.0,113190.0,0.5248035]
[1758730377398,0.32338786,113200.0,113190.0,0.61314662]
[1758730377597,1.13566786,113200.0,113190.0,0.61314662]
[1758730378705,1.5779065,113200.0,113190.0,0.61314662]
[1758730378902,1.13566786,113200.0,113190.0,0.96708956]
[1758730379104,0.81628,113200.0,113190.0,0.96708956]
[1758730379601,0.004,113200.0,113190.0,1.32788956]
[1758730379801,0.004,113200.0,113190.0,0.96708956]
[1758730380007,0.004,113200.0,113190.0,1.32788956]
[1758730380207,0.004,113200.0,113190.0,0.96708956]
[1758730381303,0.0922954,113200.0,113190.0,0.96708956]
[1758730382006,0.0922954,113200.0,113190.0,0.61314662]
[1758730382208,0.0922954,113200.0,113190.0,0.96708956]
[1758730382401,0.004,113200.0,113190.0,0.96708956]
[1758730383702,0.0922954,113200.0,113190.0,0.96708956]
[1758730384007,0.004,113200.0,113190.0,0.96708956]
[1758730385602,0.004,113200.0,113190.0,1.32788956]
[1758730386206,0.004,113200.0,113190.0,0.96708956]
[1758730386711,0.004,113200.0,113190.0,0.61314662]
[1758730386912,0.004,113200.0,113190.0,0.96708956]
[1758730387611,0.3648,113200.0,113190.0,0.96708956]
[1758730388516,0.004,113200.0,113190.0,0.96708956]
[1758730390011,0.004,113200.0,113190.0,1.3210325]
[1758730390315,0.004,113200.0,113190.0,1.6818325]
[1758730390614,0.004,113200.0,113190.0,1.79274822]
[1758730390813,1.63572386,113230.0,113220.0,0.1020098]
[1758730390814,1.28178092,113230.0,113220.0,0.1020098]
[1758730391004,1.19350262,113230.0,113220.0,0.1232398]
[1758730391212,1.19350262,113230.0,113220.0,0.47718274]
[1758730391409,1.19350262,113230.0,113220.0,0.48631554]
[1758730391614,1.19350262,113230.0,113220.0,0.57465866]
[1758730391816,1.28177462,113230.0,113220.0,0.22071572]
[1758730392111,1.28177462,113230.0,113220.0,0.57565866]
[1758730392112,1.20050262,113230.0,113220.0,0.57565866]
[1758730392310,1.28877462,113230.0,113220.0,0.57565866]
[1758730392510,0.38834262,113230.0,113220.0,0.22171572]
[1758730392713,0.47661462,113230.0,113220.0,0.21258292]
[1758730392917,0.83055756,113230.0,113220.0,0.21258292]
[1758730393118,0.47661462,113230.0,113220.0,0.21258292]
[1758730393314,0.83055756,113230.0,113220.0,0.21258292]
[1758730393720,1.24755756,113230.0,113220.0,0.1242398]
[1758730394016,1.24755756,113230.0,113220.0,0.03596]
[1758730394410,1.22701494,113230.0,113220.0,0.03596]
[1758730394619,0.7848,113230.0,113220.0,0.12424]
[1758730394923,0.4730722,113230.0,113220.0,0.12424]
[1758730395821,0.4730722,113230.0,113220.0,0.21255971]
[1758730396025,0.82701514,113230.0,113220.0,0.21255971]
[1758730396625,0.3848,113230.0,113220.0,0.21255971]
[1758730396812,0.4730723,113230.0,113220.0,0.56650265]
[1758730397924,0.4730723,113230.0,113220.0,0.21255971]
[1758730399415,0.82701524,113230.0,113220.0,0.21255971]
[1758730400110,0.4730723,113230.0,113220.0,0.28255472]
[1758730400316,0.82701524,113230.0,113220.0,0.28255472]
[1758730401121,1.22701524,113230.0,113220.0,0.12424]
[1758730401317,1.22701524,113230.0,113220.0,0.03596]
[1758730401915,1.22701524,113230.0,113220.0,0.12424]
[1758730403715,0.4730723,113230.0,113220.0,0.12424]
[1758730403914,0.82701524,113230.0,113220.0,0.12424]
[1758730404516,0.82701524,113230.0,113220.0,0.03596]
[1758730405214,0.82701524,113230.0,113220.0,0.1242401]
[1758730407813,0.4730723,113230.0,113220.0,0.1242401]
[1758730408013,0.4730723,113230.0,113220.0,0.56650275]
[1758730408220,0.4730723,113230.0,113220.0,0.96650275]
[1758730408425,0.4730723,113230.0,113220.0,0.68381898]
[1758730408626,0.4730723,113230.0,113220.0,1.03776192]
[1758730408920,0.3848,113230.0,113220.0,1.39170486]
[1758730409323,0.3848,113230.0,113220.0,2.20354486]
[1758730409515,0.024,113230.0,113220.0,2.20354486]
[1758730410325,0.022,113230.0,113220.0,2.20354486]
[1758730410526,0.022,113230.0,113220.0,2.20309036]
[1758730410720,0.022,113230.0,113220.0,2.36155904]
[1758730411329,0.017,113230.0,113220.0,2.36155904]
[1758730411923,0.017,113230.0,113220.0,2.36151904]
[1758730412118,0.011,113230.0,113220.0,2.36151904]
[1758730412319,0.011,113230.0,113220.0,2.20305036]
[1758730412720,0.01,113230.0,113220.0,2.20305036]
[1758730413220,0.36371569,113230.0,113220.0,1.80301036]
[1758730413825,0.36371569,113230.0,113220.0,0.28381898]
[1758730414029,0.36371569,113230.0,113220.0,0.63753467]
[1758730414329,0.09757274,113270.0,113220.0,0.63753467]
[1758730414330,0.38423517,113290.0,113280.0,0.1242433]
[1758730414529,0.36398569,113290.0,113280.0,0.47795899]
[1758730414718,0.45221179,113290.0,113280.0,0.38972569]
[1758730414918,0.45221179,113290.0,113280.0,0.1242439]
[1758730415524,0.36398569,113290.0,113280.0,0.1242439]
[1758730415722,0.36398569,113290.0,113280.0,0.47795959]
[1758730415723,1.17570569,113290.0,113280.0,0.47795959]
[1758730415924,1.18770569,113290.0,113280.0,0.47795959]
[1758730416121,1.19670569,113290.0,113280.0,0.47895959]
[1758730416525,0.84299,113290.0,113280.0,0.1252439]
[1758730417026,1.23399,113290.0,113280.0,0.1242439]
[1758730417330,1.23899,113290.0,113280.0,0.67750711]
[1758730417729,0.017,113290.0,113280.0,0.76578004]
[1758730418227,0.012,113290.0,113280.0,0.76578004]
[1758730418528,0.02227,113290.0,113280.0,0.21351683]
[1758730418727,1.3285161,113290.0,113280.0,0.001]
[1758730418932,1.88077931,113290.0,113280.0,0.001]
[1758730419536,1.48077931,113290.0,113280.0,0.001]
[1758730419730,0.01027,113260.0,113250.0,0.124261]
[1758730420125,0.0985195,113260.0,113250.0,0.124261]
[1758730420330,0.0985195,113260.0,113250.0,0.19425164]
[1758730420933,0.0985195,113260.0,113250.0,0.20725164]
[1758730422535,0.0985195,113260.0,113250.0,0.76051485]
[1758730422737,0.0882495,113260.0,113250.0,0.76051485]
[1758730423244,1.46233961,113270.0,113260.0,0.03601]
[1758730423937,0.9100764,113270.0,113260.0,0.03601]
[1758730424432,0.9100764,113270.0,113260.0,0.1242593]
[1758730424634,0.9100764,113270.0,113260.0,0.1292593]
[1758730424840,0.0985164,113270.0,113260.0,0.1292593]
[1758730425036,0.9099564,113270.0,113260.0,0.1292593]
[1758730425943,0.9119564,113270.0,113260.0,0.1292593]
[1758730426141,0.0902415,113270.0,113260.0,0.76981103]
[1758730426647,0.1005115,113270.0,113260.0,0.21754782]
[1758730427441,0.1005115,113270.0,113260.0,0.01857]
[1758730427637,0.1005115,113270.0,113260.0,0.04101]
[1758730428040,0.1005115,113270.0,113260.0,0.1292593]
[1758730429032,0.1005115,113270.0,113260.0,0.04101]
[1758730429236,0.9118715,113270.0,113260.0,0.1292593]
[1758730431050,0.9118715,113270.0,113260.0,0.68152251]
[1758730431346,0.82363,113270.0,113260.0,0.1292593]
[1758730431548,0.9118715,113270.0,113260.0,0.1292593]
[1758730432345,0.9118715,113270.0,113260.0,0.68152251]
[1758730432849,0.9118715,113270.0,113260.0,0.1292593]
[1758730434545,0.01227,113270.0,113260.0,0.1292593]
[1758730434747,0.002,113270.0,113260.0,0.68152251]
[1758730434950,0.002,113270.0,113260.0,0.76981103]
[1758730436745,0.1005115,113270.0,113260.0,0.76981103]
[1758730437047,0.002,113270.0,113260.0,0.1292593]
[1758730437250,0.01227,113270.0,113260.0,0.68152251]
[1758730437444,0.1005115,113270.0,113260.0,0.1292593]
[1758730438135,0.002,113270.0,113260.0,1.16981103]
[1758730438341,0.1350533,113300.0,113290.0,0.123856]
[1758730438540,0.1350533,113300.0,113290.0,0.67611921]
[1758730438943,0.1350533,113300.0,113290.0,0.123856]
[1758730439245,0.04683,113300.0,113290.0,0.123856]
[1758730439437,0.58831315,113320.0,113290.0,0.123856]
[1758730439438,0.11886708,113320.0,113310.0,0.1238404]
[1758730439844,0.93506708,113320.0,113310.0,0.03563]
[1758730440142,0.93506708,113320.0,113310.0,0.01286]
[1758730440347,1.33506708,113320.0,113310.0,0.01286]
[1758730440539,0.0984804,113310.0,113300.0,0.1010784]
[1758730441246,0.0984804,113310.0,113300.0,0.01286]
[1758730441451,0.0984884,113300.0,113290.0,0.19636432]
[1758730441851,0.0984884,113300.0,113290.0,0.19536432]
[1758730442148,0.0974884,113300.0,113290.0,0.19536432]
[1758730443145,0.9135284,113300.0,113290.0,0.10714332]
[1758730443346,1.86579161,113300.0,113290.0,0.19536932]
[1758730443547,1.87879161,113300.0,113290.0,0.19536932]
[1758730444049,0.9265284,113300.0,113290.0,0.74763253]
[1758730444350,0.83923,113300.0,113290.0,0.74763253]
[1758730444555,0.02927,113300.0,113290.0,0.74863253]
[1758730444754,0.02927,113300.0,113290.0,0.83689767]
[1758730444755,0.67755,113300.0,113290.0,0.83689767]
[1758730445154,0.019,113300.0,113290.0,0.83689767]
[1758730445948,0.019,113300.0,113290.0,1.23689767]
[1758730446151,0.1174882,113300.0,113290.0,0.28463446]
[1758730446350,0.66975141,113300.0,113290.0,0.10814332]
[1758730446551,1.88571141,113300.0,113290.0,0.07260332]
[1758730447260,1.88571141,113300.0,113290.0,0.01388]
[1758730447559,1.90653588,113300.0,113290.0,0.01388]
[1758730447754,1.91295588,113300.0,113290.0,0.001]
[1758730449449,1.89213141,113300.0,113290.0,0.001]
[1758730455961,0.0882337,113280.0,113270.0,0.01288]
[1758730456161,0.9132637,113280.0,113270.0,0.01288]
[1758730456362,1.46552691,113280.0,113270.0,0.01288]
[1758730457365,0.0882415,113270.0,113260.0,0.01288]
[1758730457560,0.65077471,113270.0,113260.0,0.03556]
[1758730457758,0.65077471,113270.0,113260.0,0.1238093]
[1758730458163,0.65077471,113270.0,113260.0,0.03556]
[1758730458365,0.65980063,113270.0,113260.0,0.03556]
[1758730458669,0.65980063,113270.0,113260.0,0.1238093]
[1758730458670,0.64977471,113270.0,113260.0,0.1238093]
[1758730459565,0.64977471,113270.0,113260.0,0.03556]
[1758730459764,0.64977471,113270.0,113260.0,0.03956]
[1758730459965,0.65177471,113270.0,113260.0,0.1278093]
[1758730460367,0.0995115,113270.0,113260.0,0.1278093]
[1758730460558,0.0892415,113270.0,113260.0,0.1278093]
[1758730460759,0.002,113270.0,113260.0,0.61609782]
[1758730460959,0.002,113270.0,113260.0,1.16836103]
[1758730461361,0.01227,113270.0,113260.0,1.16836103]
[1758730461570,0.01227,113270.0,113260.0,0.61609782]
[1758730461759,0.01227,113270.0,113260.0,1.16836103]
[1758730462365,0.002,113270.0,113260.0,1.16836103]
[1758730466172,0.02059612,113320.0,113310.0,0.0882106]
[1758730466474,0.93742892,113320.0,113310.0,0.1251206]
[1758730467475,0.94742892,113320.0,113310.0,0.03791]
[1758730467676,1.50858625,113320.0,113310.0,0.01483]
[1758730467878,1.52369213,113320.0,113310.0,0.1030406]
[1758730468177,1.52369213,113320.0,113310.0,0.01483]
[1758730468374,1.52369213,113320.0,113310.0,0.1030406]
[1758730468684,0.70533213,113320.0,113310.0,0.1030406]
[1758730468876,1.52321213,113320.0,113310.0,0.1030406]
[1758730469078,0.97094892,113320.0,113310.0,0.1261206]
[1758730469577,0.96686892,113320.0,113310.0,0.1261206]
[1758730469777,0.96674892,113320.0,113310.0,0.1261206]
[1758730470072,0.12506892,113320.0,113310.0,0.1261206]
[1758730470271,0.96174892,113320.0,113310.0,0.1261206]
[1758730470472,0.96174882,113320.0,113310.0,0.1261206]
[1758730470670,0.14406882,113320.0,113310.0,0.1261206]
[1758730470981,0.05586612,113320.0,113310.0,0.96471935]
[1758730471173,0.04559612,113320.0,113310.0,1.05296891]
[1758730471380,0.04559612,113320.0,113310.0,0.61437016]
[1758730471878,0.05586612,113320.0,113310.0,0.61437016]
[1758730472184,0.05586612,113320.0,113310.0,1.05296891]
[1758730472675,0.04559612,113320.0,113310.0,1.05296891]
[1758730474081,0.025,113320.0,113310.0,1.05296891]
[1758730478179,0.021,113320.0,113310.0,1.05196891]
[1758730478374,0.002,113320.0,113310.0,1.05196891]
[1758730478679,0.002,113320.0,113310.0,1.05296891]
[1758730479480,0.002,113320.0,113310.0,0.65296891]
[1758730479687,0.002,113320.0,113310.0,0.21437016]
[1758730480380,0.002,113320.0,113310.0,0.65296891]
[1758730483980,0.002,113320.0,113310.0,1.47304891]
[1758730485681,0.002,113320.0,113310.0,1.87304891]
[1758730489273,0.002,113320.0,113310.0,1.05296891]
[1758730489480,0.002,113320.0,113310.0,1.87192891]
[1758730490186,0.002,113320.0,113310.0,1.05296891]
[1758730490387,0.002,113320.0,113310.0,1.47180891]
[1758730490983,0.002,113320.0,113310.0,1.47176891]
[1758730492091,0.002,113320.0,113310.0,1.58258869]
[1758730492977,0.002,113320.0,113310.0,0.76378869]
[1758730493180,0.01227,113320.0,113310.0,1.58202869]
[1758730495790,0.002,113320.0,113310.0,1.58202869]
[1758730496585,0.01227,113320.0,113310.0,0.32518994]
[1758730496786,0.01227,113320.0,113310.0,0.76378869]
[1758730496986,0.01227,113320.0,113310.0,1.58326869]
[1758730497293,0.01227,113320.0,113310.0,1.03385016]
[1758730497687,0.1004727,113320.0,113310.0,1.03385016]
[1758730497888,0.1004727,113320.0,113310.0,1.47244891]
[1758730498585,0.1004727,113320.0,113310.0,1.03385016]
[1758730498786,0.1004727,113320.0,113310.0,0.32518994]
[1758730499593,0.1004727,113320.0,113310.0,0.21437016]
[1758730500094,0.1004727,113320.0,113310.0,0.1261205]
[1758730500390,0.5004727,113320.0,113310.0,0.03791]
[1758730500589,0.5004727,113320.0,113310.0,0.1261205]
[1758730501990,0.41227,113320.0,113310.0,0.1261205]
[1758730502189,0.002,113320.0,113310.0,0.1261205]
[1758730502392,0.002,113320.0,113310.0,0.56471925]
[1758730502590,0.002,113320.0,113310.0,0.65296881]
[1758730502989,0.1004725,113320.0,113310.0,0.65296881]
[1758730503289,0.1004725,113320.0,113310.0,0.21437006]
[1758730503488,0.1004725,113320.0,113310.0,0.65296881]
[1758730504088,0.1004725,113320.0,113310.0,0.21437006]
[1758730504593,0.01227,113320.0,113310.0,0.21437006]
[1758730504895,0.01227,113320.0,113310.0,0.65296881]
[1758730505194,0.002,113320.0,113310.0,0.65296881]
[1758730506496,0.1004726,113320.0,113310.0,0.65296881]
[1758730506694,0.1004726,113320.0,113310.0,0.21437006]
[1758730506889,0.1004726,113320.0,113310.0,0.65296881]
[1758730507896,0.1004726,113320.0,113310.0,0.21437006]
[1758730508895,0.1004726,113320.0,113310.0,0.1261205]
[1758730515389,0.10941193,113320.0,113310.0,0.1261205]
[1758730516396,0.1004726,113320.0,113310.0,0.1261205]
[1758730516599,0.1004726,113320.0,113310.0,0.479372]
[1758730517900,0.1004726,113320.0,113310.0,0.59019178]
[1758730518195,0.01227,113320.0,113310.0,0.59019178]
[1758730518591,0.1004727,113320.0,113310.0,0.59019178]
[1758730518996,0.01227,113320.0,113310.0,0.59019178]
[1758730520490,0.1004727,113320.0,113310.0,0.59019178]
[1758730520692,0.002,113320.0,113310.0,1.32087306]
[1758730521200,0.00041631,113320.0,113310.0,2.24765284]
[1758730521896,1e-08,113320.0,113310.0,2.24765284]
[1758730522088,0.32929759,113360.0,113350.0,0.1012994]
[1758730522291,0.32929759,113360.0,113350.0,0.1242194]
[1758730522495,0.32929759,113360.0,113350.0,0.4774709]
[1758730523099,0.72929759,113360.0,113350.0,0.4774709]
[1758730523300,0.75029759,113360.0,113350.0,0.1242194]
[1758730523490,0.75029759,113360.0,113350.0,0.54956523]
[1758730524093,0.75829759,113360.0,113350.0,0.19731373]
[1758730524992,0.54817759,113360.0,113350.0,0.19731373]
[1758730527202,0.54817269,113360.0,113350.0,0.19731373]
[1758730527801,0.54817269,113360.0,113350.0,0.55056523]
[1758730528098,0.029,113360.0,113350.0,0.63878365]
[1758730528297,0.1274416,113360.0,113350.0,0.63878365]
[1758730528601,0.1274416,113360.0,113350.0,0.55056523]
[1758730529199,0.029,113360.0,113350.0,0.63878365]
[1758730532808,0.029,113360.0,113350.0,0.63847386]
[1758730534406,0.39221171,113360.0,113350.0,0.63847386]
[1758730534607,0.48038331,113360.0,113350.0,0.63847386]
[1758730535803,0.48038331,113360.0,113350.0,0.74947076]
[1758730536408,0.1274416,113360.0,113350.0,0.74947076]
[1758730536608,0.48038331,113360.0,113350.0,0.74947076]
[1758730538210,0.48038331,113360.0,113350.0,0.63847386]
[1758730540113,0.38194171,113360.0,113350.0,0.63847386]
[1758730540510,0.029,113360.0,113350.0,0.63847386]
[1758730540805,0.029,113360.0,113350.0,0.74947076]
[1758730541001,0.029,113360.0,113350.0,1.50241247]
[1758730541916,0.029,113360.0,113350.0,1.10241247]
[1758730542106,0.029,113360.0,113350.0,1.50241247]
[1758730542305,0.029,113360.0,113350.0,1.39141557]
[1758730542805,1.27445692,113390.0,113380.0,0.0881558]
[1758730543003,1.29687692,113390.0,113380.0,0.47713751]
[1758730543210,1.20872632,113390.0,113380.0,0.47713751]
[1758730543514,1.29687432,113390.0,113380.0,0.47713751]
[1758730543712,0.47350691,113400.0,113390.0,0.1241882]
[1758730543912,0.0981452,113400.0,113390.0,0.47712991]
[1758730544221,0.47350691,113400.0,113390.0,0.56532499]
[1758730544816,0.47350691,113400.0,113390.0,0.12423508]
[1758730545116,0.48249371,113400.0,113390.0,0.47717679]
[1758730545318,0.82644862,113400.0,113390.0,0.21238328]
[1758730545619,0.47350691,113400.0,113390.0,0.21238328]
[1758730546517,0.47350691,113400.0,113390.0,0.2892452]
[1758730546918,0.48150691,113400.0,113390.0,0.2902452]
[1758730547922,0.83444862,113400.0,113390.0,0.2902452]
[1758730548525,0.48150691,113400.0,113390.0,0.64318691]
[1758730548918,0.83444862,113400.0,113390.0,0.2902452]
[1758730549113,0.83444862,113400.0,113390.0,0.63618691]
[1758730549317,0.82944862,113400.0,113390.0,0.63618691]
[1758730549822,0.47650691,113400.0,113390.0,0.63618691]
[1758730550024,0.82944862,113400.0,113390.0,0.2832452]
[1758730550323,0.5332352,113400.0,113390.0,0.18193012]
[1758730550513,1.23911862,113400.0,113390.0,0.18193012]
[1758730550919,1.23911862,113400.0,113390.0,0.07086192]
[1758730551828,1.23911862,113400.0,113390.0,0.18218022]
[1758730552823,0.5235652,113400.0,113390.0,0.19549022]
[1758730553125,0.38836171,113400.0,113390.0,0.63661923]
[1758730553330,0.013,113400.0,113390.0,0.63661923]
[1758730553526,0.1011405,113400.0,113390.0,0.63661923]
[1758730553832,0.47738221,113400.0,113390.0,0.63661923]
[1758730554026,0.1244405,113400.0,113390.0,0.63661923]
[1758730554529,0.47738221,113400.0,113390.0,0.28367752]
[1758730554724,0.47738221,113400.0,113390.0,0.63661923]
[1758730555630,0.38924171,113400.0,113390.0,0.63661923]
[1758730555928,0.47738221,113400.0,113390.0,0.63661923]
[1758730556330,0.38924171,113400.0,113390.0,0.63661923]
[1758730556518,0.47738221,113400.0,113390.0,0.63661923]
[1758730556719,0.1244405,113400.0,113390.0,0.63661923]
[1758730556915,0.47738221,113400.0,113390.0,0.63661923]
[1758730557230,0.38924171,113400.0,113390.0,0.63661923]
[1758730557728,0.0363,113400.0,113390.0,0.63661923]
[1758730557924,0.83032392,113400.0,113390.0,0.28367752]
[1758730558122,0.83032392,113400.0,113390.0,0.54843193]
[1758730558323,0.83999392,113400.0,113390.0,0.19549022]
[1758730558725,0.47738221,113400.0,113390.0,0.19549022]
[1758730558924,0.47738221,113400.0,113390.0,0.54843193]
[1758730559429,0.83032392,113400.0,113390.0,0.19549022]
[1758730560640,0.83032392,113400.0,113390.0,0.54843193]
[1758730561021,0.0363,113400.0,113390.0,0.63661923]
[1758730561221,0.013,113400.0,113390.0,0.63661923]
[1758730561729,0.013,113400.0,113390.0,0.98956094]
[1758730562135,0.013,113400.0,113390.0,1.80164094]
[1758730562934,0.013,113400.0,113390.0,2.20164094]
[1758730563135,0.013,113400.0,113390.0,2.21264094]
[1758730563534,1e-07,113400.0,113390.0,2.21264094]
[1758730563833,0.83328,113430.0,113420.0,0.101635]
[1758730564128,1.27433891,113430.0,113420.0,0.47614671]
[1758730564331,1.27433891,113430.0,113420.0,0.123205]
[1758730564540,0.9213972,113430.0,113420.0,0.123205]
[1758730564835,1.27433891,113430.0,113420.0,0.123205]
[1758730565038,0.109365,113420.0,113410.0,0.12321]
[1758730565221,0.81524842,113420.0,113410.0,0.12321]
[1758730566125,0.82491842,113420.0,113410.0,0.12321]
[1758730566738,0.81524842,113420.0,113410.0,0.12321]
[1758730567037,0.84525989,113420.0,113410.0,0.1097]
[1758730567829,0.84525989,113420.0,113410.0,0.1117]
[1758730568440,0.48264818,113420.0,113410.0,0.47815171]
[1758730569325,0.48264818,113420.0,113410.0,0.12521]
[1758730569728,0.48264818,113420.0,113410.0,0.47815171]
[1758730569923,0.12970647,113420.0,113410.0,0.47815171]
[1758730570124,0.04158147,113420.0,113410.0,0.47815171]
[1758730570330,0.04158147,113420.0,113410.0,0.56632346]
[1758730570739,0.46229121,113440.0,113430.0,0.1231972]
[1758730570932,1.27421121,113440.0,113430.0,0.47613891]
[1758730571438,1.27421121,113440.0,113430.0,0.1231972]
[1758730571641,1.27421121,113440.0,113430.0,0.47613891]
[1758730571934,1.27421121,113440.0,113430.0,0.1231972]
[1758730572137,1.27821121,113440.0,113430.0,0.47613891]
[1758730572336,0.1133495,113440.0,113430.0,0.47613891]
[1758730572544,0.9252295,113440.0,113430.0,0.47613891]
[1758730572738,1.27817121,113440.0,113430.0,0.47613891]
[1758730573044,0.1093572,113430.0,113420.0,0.1232041]
[1758730573342,0.46229891,113430.0,113420.0,0.21136031]
[1758730573541,0.46229891,113430.0,113420.0,0.03508]
[1758730573835,0.46229891,113430.0,113400.0,0.1016464]
[1758730573836,0.0881328,113410.0,113400.0,0.1016464]
[1758730574139,0.1093805,113400.0,113390.0,0.19308932]
[1758730574340,0.46232221,113400.0,113390.0,0.19308932]
[1758730574642,0.46232221,113400.0,113390.0,0.28126885]
[1758730575240,0.45532221,113400.0,113390.0,0.28126885]
[1758730575540,0.45532221,113400.0,113390.0,0.63421056]
[1758730575843,0.45532221,113400.0,113390.0,0.28126885]
[1758730576030,0.45532221,113400.0,113390.0,0.19312145]
[1758730576240,0.82680618,113400.0,113390.0,0.06986192]
[1758730576533,0.1093883,113390.0,113380.0,0.1232316]
[1758730576740,1.27413001,113390.0,113380.0,0.1232316]
[1758730577040,1.27413001,113390.0,113380.0,0.56436061]
[1758730577342,1.27213001,113390.0,113380.0,0.56436061]
[1758730577933,1.27213001,113390.0,113380.0,0.57136061]
[1758730578333,1.27213001,113390.0,113380.0,0.2184189]
[1758730578545,1.27213001,113390.0,113380.0,0.04508]
[1758730579041,1.28180001,113390.0,113380.0,0.04508]
[1758730579345,1.28180001,113390.0,113380.0,0.01]
[1758730580238,1.28180001,113390.0,113380.0,0.1195261]
[1758730580435,0.9191883,113390.0,113380.0,0.1326861]
[1758730580644,1.27213001,113390.0,113380.0,0.1326861]
[1758730581734,1.27217001,113390.0,113380.0,0.1326861]
[1758730581936,1.27217001,113390.0,113380.0,0.04453]
[1758730582244,1.27217001,113390.0,113380.0,0.39747171]
[1758730582444,1.28184001,113390.0,113380.0,0.39747171]
[1758730582745,2.03478172,113390.0,113380.0,0.01]
[1758730584138,1.68184001,113390.0,113380.0,0.01]
[1758730584746,1.68184001,113390.0,113380.0,0.0981559]
[1758730584950,1.68184001,113390.0,113380.0,0.1195259]
[1758730585150,1.3192283,113390.0,113380.0,0.1326859]
[1758730585350,1.3192283,113390.0,113380.0,0.83856932]
[1758730585351,0.83308,113390.0,113380.0,0.83856932]
[1758730585551,0.9212281,113390.0,113380.0,0.83856932]
[1758730585853,0.83308,113390.0,113380.0,0.83856932]
[1758730586251,0.02124,113390.0,113380.0,0.83856932]
[1758730586444,0.9212682,113390.0,113380.0,0.83856932]
[1758730586646,0.9212682,113390.0,113380.0,0.68392525]
[1758730586945,0.109388,113390.0,113380.0,0.68392525]
[1758730587151,0.921268,113390.0,113380.0,0.68392525]
[1758730588052,0.921268,113390.0,113380.0,0.77212033]
[1758730588554,0.921268,113390.0,113380.0,0.22088098]
[1758730590057,0.921268,113390.0,113380.0,0.1326859]
[1758730593058,0.02124,113390.0,113380.0,0.1256859]
[1758730593246,0.83308,113390.0,113380.0,0.67392525]
[1758730593448,0.83308,113390.0,113380.0,0.1236859]
[1758730593755,0.02124,113390.0,113380.0,0.67492525]
[1758730594060,0.13184853,113400.0,113390.0,0.1226783]
[1758730594257,0.13184853,113400.0,113390.0,0.67391765]
[1758730594557,0.89916853,113400.0,113390.0,0.1226783]
[1758730595753,0.90416853,113400.0,113390.0,0.1226783]
[1758730596655,0.94864853,113400.0,113390.0,0.1226783]
[1758730596856,0.94864853,113400.0,113390.0,0.19316072]
[1758730597258,0.13684853,113400.0,113390.0,0.19316072]
[1758730597456,0.94864853,113400.0,113390.0,0.19316072]
[1758730598153,0.94864853,113400.0,113390.0,0.10501242]
[1758730598361,1.79304816,113400.0,113390.0,0.07048242]
[1758730598656,0.0881558,113380.0,113370.0,0.21231323]
[1758730598854,0.9227358,113380.0,113370.0,0.1230373]
[1758730599054,0.9227358,113380.0,113370.0,0.2112246]
[1758730599750,0.110932,113390.0,113380.0,0.122686]
[1758730599955,0.922692,113390.0,113380.0,0.122686]
[1758730601457,0.83454,113390.0,113380.0,0.123686]
[1758730601658,0.8999081,113390.0,113380.0,0.64986071]
[1758730601853,0.9226881,113390.0,113380.0,0.57268108]